fUSD/lending_fUSD_20240803
["ID","MTS","AMOUNT","RATE_DAILY","PERIOD"]
[334018221,1722681061178,-1249.86,0.00019999,2]
[334018222,1722681061187,-500.0,0.00019999,2]
[334018223,1722681061198,-518.77,0.00019999,2]
[334018224,1722681061209,-2189.35,0.00019999,2]
[334018225,1722681061222,-500.0,0.00019999,2]
[334018226,1722681061232,-2133.35,0.00019999,2]
[334018227,1722681061243,-500.0,0.00019999,2]
[334018228,1722681061253,-854.24,0.00019999,2]
[334018229,1722681061263,-755.99,0.00019999,2]
[334018230,1722681061274,-18828.91,0.00019999,2]
[334018231,1722681061283,-2410.19,0.00019999,2]
[334018232,1722681061294,-665.67,0.00019999,2]
[334018233,1722681061304,-2674.72,0.00019999,2]
[334018234,1722681061314,-500.0,0.00019999,2]
[334018235,1722681061323,-642.45,0.00019999,2]
[334018236,1722681061333,-1168.1,0.00019999,2]
[334018237,1722681061342,-247.03672168,0.00019999,2]
[334018238,1722681061352,-681.71,0.00019999,2]
[334018239,1722681061361,-1012.83,0.00019999,2]
[334018240,1722681061374,-500.0,0.00019999,2]
[334018241,1722681061384,-213370.55986708,0.0002,30]
[334018242,1722681061393,-1382.65569134,0.0002,2]
[334018243,1722681061403,-5830.1258849,0.0002,3]
[334018244,1722681061412,-2402.24,0.0002,2]
[334018245,1722681061422,-500.0,0.0002,2]
[334018246,1722681061431,-6000.0,0.0002,3]
[334018247,1722681061441,-192.0,0.0002,2]
[334018248,1722681061451,-150.0,0.0002,2]
[334018249,1722681061460,-2729.22017688,0.0002,7]
[334018250,1722681061470,-160.24817792,0.0002,2]
[334018251,1722681061479,-192.0,0.0002,2]
[334018252,1722681061489,-19742.80757776,0.0002,2]
[334018253,1722681061498,-59974.28435114,0.0002,30]
[334018254,1722681061508,-5037.12234823,0.0002,30]
[334018255,1722681061518,-14720.16820962,0.0002,2]
[334018256,1722681061758,-1048.21934277,0.0002,2]
[334018257,1722681061770,-1765.24010591,0.0002,2]
[334018258,1722681061782,-352.49680907,0.0002,2]
[334018259,1722681061798,-500.0,0.00019725,2]
[334018260,1722681061809,-73113.87553263,0.0002,2]
[334018261,1722681061818,-281.0,0.0002,2]
[334018262,1722681061828,-281.0,0.0002,2]
[334018263,1722681061837,-1406.0,0.0002,2]
[334018264,1722681061847,-1406.0,0.0002,2]
[334018265,1722681061856,-1978.67532204,0.0002,2]
[334018266,1722681061865,-6900.0,0.0002,7]
[334018267,1722681061878,-231.28393464,0.0002,2]
[334018268,1722681061887,-150.0,0.0002,2]
[334018269,1722681061896,-192.0,0.0002,2]
[334018270,1722681061906,-500.0,0.0002,2]
[334018271,1722681061915,-500.0,0.0002,2]
[334018272,1722681061924,-500.0,0.0002,2]
[334018273,1722681061933,-500.0,0.0002,2]
[334018274,1722681061942,-500.0,0.0002,2]
[334018275,1722681061951,-500.0,0.0002,2]
[334018276,1722681061961,-500.0,0.0002,2]
[334018277,1722681061969,-155.12055359,0.0002,2]
[334018278,1722681061978,-500.0,0.0002,2]
[334018279,1722681061988,-645.24,0.0002,2]
[334018280,1722681061997,-6288.50435063,0.0002,2]
[334018281,1722681062007,-704.36763666,0.0002,2]
[334018282,1722681062016,-258.34964447,0.0002,2]
[334018283,1722681062025,-500.0,0.0002,2]
[334018284,1722681062035,-2000.0,0.0002,2]
[334018285,1722681062044,-500.0,0.0002,2]
[334018286,1722681062054,-1549.91197,0.0002,2]
[334018287,1722681062063,-500.0,0.0002,2]
[334018288,1722681062073,-525.86,0.0002,2]
[334018289,1722681062082,-150.156479,0.0002,2]
[334018290,1722681062091,-275.5,0.0002,2]
[334018291,1722681062099,-500.0,0.0002,2]
[334018292,1722681062109,-705.1,0.0002,2]
[334018293,1722681062121,-1022.36,0.0002,2]
[334018294,1722681062131,-644.54,0.0002,2]
[334018295,1722681062141,-500.0,0.0002,2]
[334018296,1722681062151,-503.8,0.0002,2]
[334018297,1722681062161,-1000.457729,0.0002,2]
[334018298,1722681062171,-500.0,0.0002,2]
[334018299,1722681062180,-1000.0,0.0002,2]
[334018300,1722681062190,-6533.60629136,0.0002,2]
[334018301,1722681062205,-2094.17295339,0.0002,2]
[334018302,1722681062216,-6873.22075525,0.0002,2]
[334018303,1722681062225,-1196.38,0.0002,2]
[334018304,1722681062235,-191.43732751,0.0002,2]
[334018305,1722681062246,-643.40887189,0.0002,2]
[334018306,1722681062256,-500.0,0.0002,2]
[334018307,1722681062265,-54.55304535,0.0002,2]
[334018308,1722681062286,-479.45695465,0.0002,2]
[334018309,1722681062295,-234.68231402,0.0002,2]
[334018310,1722681062364,-334.74865078,0.00018903,2]
[334018311,1722681062761,-347.25,0.00016986,2]
[334018312,1722681062770,-207.35134922,0.00018903,2]
[334018313,1722681062780,-542.1,0.00019177,2]
[334018314,1722681062791,-371.74166536,0.00019387,2]
[334018315,1722681062803,-542.1,0.00019451,2]
[334018316,1722681062812,-542.1,0.00019725,2]
[334018317,1722681062822,-480.7909784,0.00019994,2]
[334018318,1722681062832,-500.0,0.00019999,2]
[334018319,1722681062842,-206.59146968,0.00019999,2]
[334018320,1722681062851,-542.1,0.00019999,2]
[334018321,1722681062860,-228.88310124,0.0002,2]
[334018322,1722681062873,-500.0,0.0002,2]
[334018323,1722681062883,-797.16,0.0002,2]
[334018324,1722681062894,-225.93483943,0.00020007,2]
[334018325,1722681062904,-1500.0,0.00020008,2]
[334018326,1722681062913,-2000.0,0.0002001,2]
[334018327,1722681062923,-2000.0,0.0002002,2]
[334018328,1722681062933,-306.2,0.0002003,2]
[334018329,1722681063046,-3590.790469,0.0002003,2]
[334018330,1722681063064,-500.0,0.00020081,2]
[334018331,1722681063074,-2700.0,0.00020092,2]
[334018332,1722681063083,-173.33,0.00020104,2]
[334018333,1722681063092,-500.0,0.00020127,2]
[334018334,1722681063101,-274.14147396,0.00020139,2]
[334018335,1722681063111,-500.0,0.00020139,2]
[334018336,1722681063120,-500.0,0.00020155,2]
[334018337,1722681063131,-493.24,0.00020161,2]
[334018338,1722681063140,-500.0,0.00020177,2]
[334018339,1722681063150,-500.0,0.00020207,2]
[334018340,1722681063159,-500.0,0.00020209,2]
[334018341,1722681063169,-2700.0,0.00020211,2]
[334018342,1722681063178,-700.0,0.00020216,2]
[334018343,1722681063188,-176.02735824,0.00020219,4]
[334018344,1722681063199,-2023.13812146,0.00020222,2]
[334018345,1722681063211,-42325.86044124,0.00020239,2]
[334018346,1722681063239,-699.43255132,0.00020239,2]
[334018347,1722681063251,-4635.53942955,0.00020239,2]
[334018348,1722681063261,-500.0,0.00020242,2]
[334018349,1722681063271,-153.3909946,0.00020242,2]
[334018350,1722681063283,-500.0,0.00020243,2]
[334018351,1722681063293,-385.83247,0.00020257,2]
[334018352,1722681063303,-500.0,0.00020262,2]
[334018353,1722681063312,-2700.0,0.00020265,2]
[334018354,1722681063322,-2402.24,0.00020273,2]
[334018356,1722681063332,-500.0,0.00020273,2]
[334018357,1722681063341,-500.0,0.00020273,2]
[334018358,1722681063351,-500.0,0.00020273,2]
[334018359,1722681063360,-500.0,0.00020273,2]
[334018360,1722681063371,-500.0,0.00020273,2]
[334018361,1722681063381,-500.0,0.00020273,2]
[334018362,1722681063391,-500.0,0.00020273,2]
[334018363,1722681063400,-416.88461943,0.00020273,2]
[334018364,1722681063410,-645.24,0.00020273,2]
[334018365,1722681063420,-642.09824109,0.00020273,2]
[334018366,1722681063429,-519.7151379,0.00020273,2]
[334018367,1722681063438,-500.0,0.00020273,2]
[334018368,1722681063448,-615.44,0.00020273,2]
[334018369,1722681063458,-500.0,0.00020273,2]
[334018370,1722681063468,-500.0,0.00020273,2]
[334018371,1722681063478,-500.0,0.00020273,2]
[334018372,1722681063487,-500.0,0.00020273,2]
[334018373,1722681063496,-607.26,0.00020273,2]
[334018374,1722681063506,-727.23,0.00020273,2]
[334018375,1722681063516,-1294.76,0.00020273,2]
[334018376,1722681063527,-500.0,0.00020273,2]
[334018377,1722681063536,-3092.21,0.00020273,2]
[334018378,1722681063546,-866.72,0.00020273,2]
[334018379,1722681063555,-84.18231754,0.00020273,2]
[334018380,1722681063571,-415.81768246,0.00020273,2]
[334018381,1722681063581,-500.0,0.00020273,2]
[334018382,1722681063590,-500.0,0.00020273,2]
[334018383,1722681063599,-704.91995801,0.00020273,2]
[334018384,1722681063612,-538.19004199,0.00020273,2]
[334018385,1722681063625,-185.05374726,0.00020273,2]
[334018386,1722681065503,-314.94625274,0.00020273,2]
[334018387,1722681065512,-500.0,0.00020273,2]
[334018388,1722681065522,-500.0,0.00020273,2]
[334018389,1722681065532,-500.0,0.00020273,2]
[334018390,1722681065542,-671.54,0.00020273,2]
[334018391,1722681065551,-1371.5,0.00020273,2]
[334018392,1722681065561,-774.65,0.00020273,2]
[334018393,1722681065570,-608.37,0.00020273,2]
[334018394,1722681065581,-500.0,0.00020273,2]
[334018395,1722681065591,-500.0,0.00020273,2]
[334018396,1722681065602,-500.0,0.00020273,2]
[334018397,1722681065612,-500.0,0.00020273,2]
[334018398,1722681065622,-681.09,0.00020273,2]
[334018399,1722681065632,-500.0,0.00020273,2]
[334018400,1722681065642,-609.66167771,0.00020273,2]
[334018401,1722681065653,-519.46,0.00020273,2]
[334018402,1722681065663,-361.0671055,0.00020273,2]
[334018403,1722681065673,-500.0,0.00020273,2]
[334018404,1722681065682,-576.09226555,0.00020273,2]
[334018405,1722681065694,-350.61060467,0.00020273,2]
[334018406,1722681065706,-1147.51712978,0.00020273,2]
[334018407,1722681065716,-500.0,0.00020273,2]
[334018408,1722681065725,-500.0,0.00020273,2]
[334018409,1722681065735,-500.0,0.00020273,2]
[334018410,1722681065745,-500.0,0.00020273,2]
[334018411,1722681065754,-500.0,0.00020273,2]
[334018412,1722681065764,-99.98111856,0.00020273,2]
[334018413,1722681066116,-310.00217,0.00016985,2]
[334018414,1722681066129,-189.99783,0.00016985,2]
[334018415,1722681066139,-500.0,0.00017259,2]
[334018416,1722681066148,-266.83400926,0.00017533,2]
[334018417,1722681066159,-233.16599074,0.00017533,2]
[334018418,1722681066169,-324.66624936,0.00017807,2]
[334018419,1722681066180,-257.56796964,0.00017807,2]
[334018420,1722681066189,-130.13203036,0.00020273,2]
[334018421,1722681066230,-295.74685108,0.00020273,2]
[334018422,1722681066240,-1059.18,0.00020273,2]
[334018423,1722681066251,-500.0,0.00020273,2]
[334018424,1722681066260,-807.86,0.00020273,2]
[334018425,1722681066270,-500.0,0.00020273,2]
[334018426,1722681066280,-500.0,0.00020273,2]
[334018427,1722681066290,-2893.19,0.00020273,2]
[334018428,1722681066300,-705.1,0.00020273,2]
[334018429,1722681066309,-542.83,0.00020273,2]
[334018430,1722681066319,-500.0,0.00020273,2]
[334018431,1722681066328,-482.42251971,0.00020273,2]
[334018432,1722681066339,-832.77748029,0.00020273,2]
[334018433,1722681066349,-500.0,0.00020273,2]
[334018434,1722681066359,-500.0,0.00020273,2]
[334018435,1722681066368,-1022.36,0.00020273,2]
[334018436,1722681066379,-500.0,0.00020273,2]
[334018437,1722681066388,-190.54535332,0.00020273,2]
[334018438,1722681066400,-432.00902886,0.00020273,2]
[334018439,1722681066451,-531.15597812,0.00020273,2]
[334018440,1722681066463,-264.7896397,0.00020273,2]
[334018441,1722681066473,-1302.08,0.00020273,2]
[334018442,1722681066482,-644.54,0.00020273,2]
[334018443,1722681066491,-755.74,0.00020273,2]
[334018444,1722681066501,-500.0,0.00020273,2]
[334018445,1722681066510,-1249.86,0.00020273,2]
[334018446,1722681066520,-500.0,0.00020273,2]
[334018447,1722681066529,-500.0,0.00020273,2]
[334018448,1722681066538,-518.77,0.00020273,2]
[334018449,1722681066548,-2189.35,0.00020273,2]
[334018450,1722681066557,-508.78624695,0.00020273,2]
[334018451,1722681066567,-503.8,0.00020273,2]
[334018452,1722681066577,-2133.35,0.00020273,2]
[334018453,1722681066586,-500.0,0.00020273,2]
[334018454,1722681066596,-500.0,0.00020273,2]
[334018455,1722681066606,-854.24,0.00020273,2]
[334018456,1722681066615,-755.99,0.00020273,2]
[334018457,1722681066625,-18828.91,0.00020273,2]
[334018458,1722681066635,-1196.38,0.00020273,2]
[334018459,1722681066643,-2410.19,0.00020273,2]
[334018460,1722681066653,-665.67,0.00020273,2]
[334018461,1722681066662,-2674.72,0.00020273,2]
[334018462,1722681066671,-385.49,0.00020273,2]
[334018463,1722681066680,-642.45,0.00020273,2]
[334018464,1722681066689,-500.0,0.00020273,2]
[334018465,1722681066698,-534.01,0.00020273,2]
[334018466,1722681066708,-1168.1,0.00020273,2]
[334018467,1722681066718,-500.0,0.00020273,2]
[334018468,1722681066727,-681.71,0.00020273,2]
[334018469,1722681066736,-1012.83,0.00020273,2]
[334018470,1722681066745,-797.16,0.00020273,2]
[334018471,1722681066755,-449.23794783,0.00020273,2]
[334018472,1722681066764,-500.0,0.00020273,2]
[334018473,1722681066773,-542.1,0.00020273,2]
[334018474,1722681066782,-2700.0,0.00020282,2]
[334018475,1722681066791,-500.0,0.00020294,2]
[334018476,1722681066800,-500.0,0.000203,2]
[334018477,1722681066809,-700.0,0.00020306,2]
[334018478,1722681066819,-400.0,0.00020342,2]
[334018479,1722681066828,-500.0,0.00020378,2]
[334018480,1722681066838,-1500.0,0.00020379,2]
[334018481,1722681066848,-500.0,0.00020397,2]
[334018482,1722681066858,-2000.0,0.000204,2]
[334018483,1722681066869,-2000.0,0.000204,2]
[334018484,1722681066881,-291.0,0.00020447,2]
[334018485,1722681066890,-500.0,0.0002046,2]
[334018486,1722681066900,-500.0,0.00020488,2]
[334018487,1722681066909,-1556.83,0.00020488,7]
[334018488,1722681066918,-1556.83,0.00020488,7]
[334018489,1722681066927,-1556.83,0.00020488,7]
[334018490,1722681066936,-1556.83,0.00020488,7]
[334018491,1722681066945,-500.0,0.00020498,2]
[334018492,1722681066955,-500.0,0.00020507,2]
[334018493,1722681066963,-500.0,0.00020533,2]
[334018494,1722681066973,-1500.0,0.00020536,2]
[334018495,1722681066982,-500.0,0.00020539,2]
[334018496,1722681066991,-680.0,0.0002054,2]
[334018497,1722681067000,-2402.24,0.00020547,2]
[334018498,1722681067011,-500.0,0.00020547,2]
[334018499,1722681067021,-500.0,0.00020547,2]
[334018500,1722681067031,-500.0,0.00020547,2]
[334018501,1722681067041,-500.0,0.00020547,2]
[334018502,1722681067051,-500.0,0.00020547,2]
[334018503,1722681067060,-516.06577858,0.00020547,2]
[334018504,1722681067069,-645.24,0.00020547,2]
[334018505,1722681067079,-500.0,0.00020547,2]
[334018506,1722681067088,-615.44,0.00020547,2]
[334018507,1722681067098,-500.0,0.00020547,2]
[334018508,1722681067107,-500.0,0.00020547,2]
[334018509,1722681067116,-158.81095993,0.00020547,2]
[334018510,1722681067127,-500.0,0.00020547,2]
[334018511,1722681067144,-1294.76,0.00020547,2]
[334018512,1722681067154,-500.0,0.00020547,2]
[334018513,1722681067163,-866.72,0.00020547,2]
[334018514,1722681067172,-500.0,0.00020547,2]
[334018515,1722681067181,-460.96626628,0.00020547,2]
[334018516,1722681067191,-500.0,0.00020547,2]
[334018517,1722681067203,-1243.11,0.00020547,2]
[334018518,1722681067212,-500.0,0.00020547,2]
[334018519,1722681067221,-500.0,0.00020547,2]
[334018520,1722681067230,-500.0,0.00020547,2]
[334018521,1722681067239,-500.0,0.00020547,2]
[334018522,1722681067249,-671.54,0.00020547,2]
[334018523,1722681067259,-1371.5,0.00020547,2]
[334018524,1722681067268,-774.65,0.00020547,2]
[334018525,1722681067279,-608.37,0.00020547,2]
[334018526,1722681067288,-500.0,0.00020547,2]
[334018527,1722681067297,-500.0,0.00020547,2]
[334018528,1722681067360,-500.0,0.00020547,2]
[334018529,1722681067370,-500.0,0.00020547,2]
[334018530,1722681067379,-681.09,0.00020547,2]
[334018531,1722681067389,-500.0,0.00020547,2]
[334018532,1722681067399,-519.46,0.00020547,2]
[334018533,1722681067408,-500.0,0.00020547,2]
[334018534,1722681067417,-2074.22,0.00020547,2]
[334018535,1722681067427,-500.0,0.00020547,2]
[334018536,1722681067436,-500.0,0.00020547,2]
[334018537,1722681067446,-500.0,0.00020547,2]
[334018538,1722681067455,-500.0,0.00020547,2]
[334018539,1722681067465,-500.0,0.00020547,2]
[334018540,1722681067474,-525.86,0.00020547,2]
[334018541,1722681067484,-1059.18,0.00020547,2]
[334018542,1722681067493,-500.0,0.00020547,2]
[334018543,1722681067503,-807.86,0.00020547,2]
[334018544,1722681067512,-500.0,0.00020547,2]
[334018545,1722681067521,-500.0,0.00020547,2]
[334018546,1722681067531,-2893.19,0.00020547,2]
[334018547,1722681067540,-705.1,0.00020547,2]
[334018548,1722681067550,-542.83,0.00020547,2]
[334018549,1722681067559,-500.0,0.00020547,2]
[334018550,1722681067568,-1315.2,0.00020547,2]
[334018551,1722681067578,-500.0,0.00020547,2]
[334018552,1722681067587,-500.0,0.00020547,2]
[334018553,1722681067596,-1022.36,0.00020547,2]
[334018554,1722681067606,-500.0,0.00020547,2]
[334018555,1722681067615,-1418.5,0.00020547,2]
[334018556,1722681067626,-644.54,0.00020547,2]
[334018557,1722681067635,-1302.08,0.00020547,2]
[334018558,1722681067644,-500.0,0.00020547,2]
[334018559,1722681067654,-755.74,0.00020547,2]
[334018560,1722681067664,-1249.86,0.00020547,2]
[334018561,1722681067673,-500.0,0.00020547,2]
[334018562,1722681067683,-500.0,0.00020547,2]
[334018563,1722681067692,-518.77,0.00020547,2]
[334018564,1722681067701,-2189.35,0.00020547,2]
[334018565,1722681067711,-503.8,0.00020547,2]
[334018566,1722681067722,-2133.35,0.00020547,2]
[334018567,1722681067731,-500.0,0.00020547,2]
[334018568,1722681067741,-500.0,0.00020547,2]
[334018569,1722681067750,-854.24,0.00020547,2]
[334018570,1722681067760,-755.99,0.00020547,2]
[334018571,1722681067769,-18828.91,0.00020547,2]
[334018572,1722681067779,-1196.38,0.00020547,2]
[334018573,1722681067790,-2410.19,0.00020547,2]
[334018574,1722681067800,-665.67,0.00020547,2]
[334018575,1722681067809,-2674.72,0.00020547,2]
[334018576,1722681067819,-642.45,0.00020547,2]
[334018577,1722681067828,-444.00172608,0.00020547,2]
[334018578,1722681067839,-534.01,0.00020547,2]
[334018579,1722681067848,-1168.1,0.00020547,2]
[334018580,1722681067858,-500.0,0.00020547,2]
[334018581,1722681067867,-681.71,0.00020547,2]
[334018582,1722681067878,-1012.83,0.00020547,2]
[334018583,1722681067887,-797.16,0.00020547,2]
[334018584,1722681067897,-500.0,0.00020547,2]
[334018585,1722681067906,-542.1,0.00020547,2]
[334018586,1722681067915,-172.75,0.00020548,2]
[334018587,1722681067924,-2700.0,0.00020551,2]
[334018588,1722681067934,-500.0,0.00020562,2]
[334018589,1722681067943,-500.0,0.00020599,2]
[334018590,1722681067952,-500.0,0.00020605,2]
[334018591,1722681067962,-500.0,0.00020605,2]
[334018592,1722681067971,-700.0,0.00020608,2]
[334018593,1722681067979,-999.6,0.00020625,2]
[334018594,1722681067988,-500.0,0.00020625,2]
[334018595,1722681067997,-500.0,0.0002065,2]
[334018596,1722681068007,-500.0,0.00020659,2]
[334018597,1722681068016,-150.0,0.0002066,120]
[334018598,1722681068025,-2700.0,0.00020687,2]
[334018599,1722681068034,-500.0,0.00020717,2]
[334018600,1722681068044,-2700.0,0.00020753,2]
[334018601,1722681068052,-1556.83,0.00020761,7]
[334018602,1722681068062,-1556.83,0.00020761,7]
[334018603,1722681068071,-700.0,0.00020764,2]
[334018604,1722681068080,-1500.0,0.0002079,2]
[334018605,1722681068090,-157.3442795,0.00020821,2]
[334018606,1722681068099,-2402.24,0.00020821,2]
[334018607,1722681068108,-500.0,0.00020821,2]
[334018608,1722681068117,-500.0,0.00020821,2]
[334018609,1722681068127,-500.0,0.00020821,2]
[334018610,1722681068136,-500.0,0.00020821,2]
[334018611,1722681068146,-500.0,0.00020821,2]
[334018612,1722681068154,-645.24,0.00020821,2]
[334018613,1722681068163,-500.0,0.00020821,2]
[334018614,1722681068172,-615.44,0.00020821,2]
[334018615,1722681068182,-500.0,0.00020821,2]
[334018616,1722681068190,-500.0,0.00020821,2]
[334018617,1722681068203,-500.0,0.00020821,2]
[334018618,1722681068212,-1294.76,0.00020821,2]
[334018619,1722681068222,-500.0,0.00020821,2]
[334018620,1722681068231,-866.72,0.00020821,2]
[334018621,1722681068240,-500.0,0.00020821,2]
[334018622,1722681068250,-500.0,0.00020821,2]
[334018623,1722681068259,-1243.11,0.00020821,2]
[334018624,1722681068269,-500.0,0.00020821,2]
[334018625,1722681068281,-500.0,0.00020821,2]
[334018626,1722681068291,-500.0,0.00020821,2]
[334018627,1722681068303,-500.0,0.00020821,2]
[334018628,1722681068314,-671.54,0.00020821,2]
[334018629,1722681068323,-1371.5,0.00020821,2]
[334018630,1722681068332,-774.65,0.00020821,2]
[334018631,1722681068342,-608.37,0.00020821,2]
[334018632,1722681068351,-500.0,0.00020821,2]
[334018633,1722681068361,-500.0,0.00020821,2]
[334018634,1722681068371,-600.9105686,0.00020821,2]
[334018635,1722681068382,-500.0,0.00020821,2]
[334018636,1722681068392,-681.09,0.00020821,2]
[334018637,1722681068401,-500.0,0.00020821,2]
[334018638,1722681068411,-519.46,0.00020821,2]
[334018639,1722681068420,-500.0,0.00020821,2]
[334018640,1722681068429,-2074.22,0.00020821,2]
[334018641,1722681068439,-500.0,0.00020821,2]
[334018642,1722681068449,-500.0,0.00020821,2]
[334018643,1722681068459,-500.0,0.00020821,2]
[334018644,1722681068469,-500.0,0.00020821,2]
[334018645,1722681068479,-500.0,0.00020821,2]
[334018646,1722681068488,-525.86,0.00020821,2]
[334018647,1722681068498,-1059.18,0.00020821,2]
[334018648,1722681068509,-500.0,0.00020821,2]
[334018649,1722681068519,-807.86,0.00020821,2]
[334018650,1722681068529,-505.90225037,0.00020821,2]
[334018651,1722681068539,-500.0,0.00020821,2]
[334018652,1722681068549,-2893.19,0.00020821,2]
[334018653,1722681068559,-705.1,0.00020821,2]
[334018654,1722681068569,-542.83,0.00020821,2]
[334018655,1722681068579,-371.13567733,0.00020821,2]
[334018656,1722681068590,-1315.2,0.00020821,2]
[334018657,1722681068600,-500.0,0.00020821,2]
[334018658,1722681068610,-500.0,0.00020821,2]
[334018659,1722681068620,-1022.36,0.00020821,2]
[334018660,1722681068631,-500.0,0.00020821,2]
[334018661,1722681068640,-1418.5,0.00020821,2]
[334018662,1722681068650,-644.54,0.00020821,2]
[334018663,1722681068660,-1302.08,0.00020821,2]
[334018664,1722681068670,-500.0,0.00020821,2]
[334018665,1722681068678,-755.74,0.00020821,2]
[334018666,1722681068690,-1249.86,0.00020821,2]
[334018667,1722681068701,-500.0,0.00020821,2]
[334018668,1722681068712,-471.45800969,0.00020821,2]
[334018669,1722681068723,-518.77,0.00020821,2]
[334018670,1722681068733,-2189.35,0.00020821,2]
[334018671,1722681068743,-503.8,0.00020821,2]
[334018672,1722681068753,-2133.35,0.00020821,2]
[334018673,1722681068762,-500.0,0.00020821,2]
[334018674,1722681068772,-500.0,0.00020821,2]
[334018675,1722681068782,-854.24,0.00020821,2]
[334018676,1722681068791,-755.99,0.00020821,2]
[334018677,1722681068801,-18828.91,0.00020821,2]
[334018678,1722681068811,-1196.38,0.00020821,2]
[334018679,1722681068821,-2410.19,0.00020821,2]
[334018680,1722681068831,-665.67,0.00020821,2]
[334018681,1722681068840,-2674.72,0.00020821,2]
[334018682,1722681068850,-642.45,0.00020821,2]
[334018683,1722681068860,-534.01,0.00020821,2]
[334018684,1722681068874,-1168.1,0.00020821,2]
[334018685,1722681068884,-500.0,0.00020821,2]
[334018686,1722681068894,-681.71,0.00020821,2]
[334018687,1722681068903,-1012.83,0.00020821,2]
[334018688,1722681068913,-797.16,0.00020821,2]
[334018689,1722681068923,-500.0,0.00020821,2]
[334018690,1722681068933,-542.1,0.00020821,2]
[334018691,1722681068943,-153.3909946,0.00020825,2]
[334018692,1722681068952,-500.0,0.00020828,2]
[334018693,1722681068963,-176.91516524,0.00020831,2]
[334018694,1722681068973,-220.9706123,0.00020886,2]
[334018695,1722681068982,-191.7747826,0.00020886,2]
[334018696,1722681068993,-11393.4904533,0.00020886,2]
[334018697,1722681069003,-480.7909784,0.00020886,2]
[334018698,1722681069012,-1500.0,0.00020898,2]
[334018699,1722681069022,-70131.3,0.000209,2]
[334018700,1722681069032,-3300.0,0.000209,7]
[334018701,1722681069042,-500.0,0.00020914,2]
[334018702,1722681069051,-160.01,0.00020953,2]
[334018703,1722681069060,-306.2,0.0002096,2]
[334018704,1722681069070,-1500.0,0.00020962,2]
[334018705,1722681069080,-2700.0,0.0002097,2]
[334018706,1722681069090,-500.0,0.00020971,2]
[334018707,1722681069099,-220.9706123,0.00020986,2]
[334018708,1722681069109,-191.7747826,0.00020986,2]
[334018709,1722681069119,-8597.3122073,0.00020986,2]
[334018710,1722681069130,-480.7909784,0.00020986,2]
[334018711,1722681069139,-1209.04887898,0.00020988,2]
[334018712,1722681069149,-500000.0,0.00021,2]
[334018713,1722681069158,-265.61,0.00021,2]
[334018714,1722681069167,-300.51628783,0.00021,2]
[334018715,1722681069177,-275.5,0.00021,2]
[334018716,1722681069186,-1900.0,0.00021024,2]
[334018717,1722681069196,-1556.83,0.00021035,7]
[334018718,1722681069209,-1556.83,0.00021035,7]
[334018719,1722681069218,-5000.0,0.0002104,2]
[334018720,1722681069228,-500.0,0.0002104,2]
[334018721,1722681069238,-500.0,0.0002104,2]